[Event "Early-Titled-Tuesday-Blitz-April-23-2024"]
[Site "Chess.com"]
[Date "2024.04.23"]
[Round "9"]
[White "Manukyan_Artak"]
[Black "viktorskliarov"]
[Result "1/2-1/2"]
[WhiteElo "2467"]
[BlackElo "2601"]
[TimeControl "180+1"]
[EndTime "9:49:23 PDT"]
[Termination "Game drawn by repetition"]

1. e4 {[%clk 0:02:53.1]} 1... c5 {[%clk 0:02:59.8]} 2. Nf3 {[%clk 0:02:51.2]}
2... Nc6 {[%clk 0:03:00.2]} 3. c3 {[%clk 0:02:47.9]} 3... Nf6 {[%clk 0:02:59.6]}
4. e5 {[%clk 0:02:44.8]} 4... Nd5 {[%clk 0:02:59.6]} 5. d4 {[%clk 0:02:45.7]}
5... cxd4 {[%clk 0:02:59]} 6. cxd4 {[%clk 0:02:43]} 6... e6 {[%clk 0:02:56.9]}
7. Nc3 {[%clk 0:02:41.8]} 7... d6 {[%clk 0:02:56.9]} 8. Bd3 {[%clk 0:02:34.3]}
8... dxe5 {[%clk 0:02:53.6]} 9. dxe5 {[%clk 0:02:31.3]} 9... Ndb4 {[%clk
0:02:53.7]} 10. Be4 {[%clk 0:02:28.8]} 10... Qxd1+ {[%clk 0:02:48.3]} 11. Kxd1
{[%clk 0:02:29.7]} 11... f5 {[%clk 0:02:44]} 12. exf6 {[%clk 0:02:25.1]} 12...
gxf6 {[%clk 0:02:43.4]} 13. a3 {[%clk 0:02:26]} 13... Na6 {[%clk 0:02:29.3]} 14.
b4 {[%clk 0:02:19.5]} 14... Nc7 {[%clk 0:02:29.4]} 15. Kc2 {[%clk 0:02:11.9]}
15... Bd7 {[%clk 0:02:24.3]} 16. Bb2 {[%clk 0:01:59.7]} 16... Rg8 {[%clk
0:01:47.3]} 17. g3 {[%clk 0:01:52.5]} 17... f5 {[%clk 0:01:47.3]} 18. Bd3 {[%clk
0:01:50.9]} 18... Bg7 {[%clk 0:01:41.8]} 19. Rhd1 {[%clk 0:01:37.9]} 19... O-O-O
{[%clk 0:01:36]} 20. Bc4 {[%clk 0:01:33.4]} 20... Rge8 {[%clk 0:01:15.3]} 21.
Kb3 {[%clk 0:01:23.9]} 21... Ne5 {[%clk 0:00:49.6]} 22. Nxe5 {[%clk 0:01:19.6]}
22... Bxe5 {[%clk 0:00:50.5]} 23. Rac1 {[%clk 0:01:11.2]} 23... Bc6 {[%clk
0:00:45.9]} 24. Rxd8+ {[%clk 0:00:59.4]} 24... Rxd8 {[%clk 0:00:46.8]} 25. Nb5
{[%clk 0:00:50.6]} 25... Bxb5 {[%clk 0:00:17]} 26. Bxe5 {[%clk 0:00:38.5]} 26...
Bxc4+ {[%clk 0:00:15.9]} 27. Rxc4 {[%clk 0:00:37]} 27... Rd7 {[%clk 0:00:16.1]}
28. Kc3 {[%clk 0:00:28.1]} 28... Kd8 {[%clk 0:00:15.1]} 29. Bxc7+ {[%clk
0:00:23.8]} 29... Rxc7 {[%clk 0:00:15.4]} 30. Kd4 {[%clk 0:00:18.5]} 30... Rd7+
{[%clk 0:00:13.9]} 31. Ke5 {[%clk 0:00:18.1]} 31... Ke7 {[%clk 0:00:14.4]} 32.
Rd4 {[%clk 0:00:16.2]} 32... Rxd4 {[%clk 0:00:10]} 33. Kxd4 {[%clk 0:00:16.2]}
33... Kd6 {[%clk 0:00:10.8]} 34. f4 {[%clk 0:00:16.1]} 34... b5 {[%clk
0:00:10.9]} 35. h3 {[%clk 0:00:14.8]} 35... h5 {[%clk 0:00:11.1]} 36. h4 {[%clk
0:00:14.5]} 36... a6 {[%clk 0:00:11.4]} 37. Ke3 {[%clk 0:00:13.3]} 37... Kd5
{[%clk 0:00:11.5]} 38. Kd3 {[%clk 0:00:13.7]} 38... Kc6 {[%clk 0:00:11.9]} 39.
Kd4 {[%clk 0:00:12.6]} 39... Kd6 {[%clk 0:00:12.3]} 40. Ke3 {[%clk 0:00:12.8]}
40... Kd5 {[%clk 0:00:12.7]} 41. Kd3 {[%clk 0:00:13.1]} 41... Kc6 {[%clk
0:00:13]} 42. Kd4 {[%clk 0:00:10.6]} 42... Kd6 {[%clk 0:00:13.3]} 1/2-1/2

[Event "Early-Titled-Tuesday-Blitz-April-23-2024"]
[Site "Chess.com"]
[Date "2024.04.23"]
[Round "9"]
[White "Tagir45"]
[Black "CSB7"]
[Result "1/2-1/2"]
[WhiteElo "2663"]
[BlackElo "2802"]
[TimeControl "180+1"]
[EndTime "9:49:24 PDT"]
[Termination "Game drawn by repetition"]

1. d4 {[%clk 0:02:58.3]} 1... Nf6 {[%clk 0:02:59.6]} 2. c4 {[%clk 0:02:58.1]}
2... e6 {[%clk 0:03:00.2]} 3. Nf3 {[%clk 0:02:57.7]} 3... b6 {[%clk 0:02:58.1]}
4. g3 {[%clk 0:02:57.7]} 4... Ba6 {[%clk 0:02:57.2]} 5. Qc2 {[%clk 0:02:57]}
5... Bb4+ {[%clk 0:02:54.1]} 6. Bd2 {[%clk 0:02:56.3]} 6... Be7 {[%clk
0:02:54.5]} 7. e4 {[%clk 0:02:55]} 7... d5 {[%clk 0:02:46.7]} 8. cxd5 {[%clk
0:02:53.9]} 8... Bxf1 {[%clk 0:02:47.1]} 9. Kxf1 {[%clk 0:02:52.8]} 9... exd5
{[%clk 0:02:45.7]} 10. e5 {[%clk 0:02:52.5]} 10... Ne4 {[%clk 0:02:45.9]} 11.
Nc3 {[%clk 0:02:52]} 11... Nxc3 {[%clk 0:02:41.2]} 12. bxc3 {[%clk 0:02:51.4]}
12... O-O {[%clk 0:02:39.6]} 13. h4 {[%clk 0:02:50.4]} 13... f5 {[%clk
0:02:11.3]} 14. exf6 {[%clk 0:02:23.4]} 14... Bxf6 {[%clk 0:02:11.3]} 15. Ng5
{[%clk 0:02:19.7]} 15... Bxg5 {[%clk 0:02:11.6]} 16. hxg5 {[%clk 0:02:18.4]}
16... g6 {[%clk 0:02:12.1]} 17. Kg2 {[%clk 0:02:16.5]} 17... Qd7 {[%clk
0:01:54.2]} 18. Rh6 {[%clk 0:02:00.6]} 18... Rf7 {[%clk 0:01:54.1]} 19. Rah1
{[%clk 0:01:58.6]} 19... Rg7 {[%clk 0:01:54.6]} 20. Bf4 {[%clk 0:01:02.5]} 20...
Nc6 {[%clk 0:01:54.5]} 21. Be5 {[%clk 0:00:52.3]} 21... Nxe5 {[%clk 0:01:52.7]}
22. dxe5 {[%clk 0:00:53.2]} 22... c5 {[%clk 0:01:38.9]} 23. f4 {[%clk
0:00:51.6]} 23... Rd8 {[%clk 0:01:34.4]} 24. Rd1 {[%clk 0:00:47.5]} 24... Qe6
{[%clk 0:01:20.9]} 25. Rhh1 {[%clk 0:00:38.3]} 25... Rgd7 {[%clk 0:01:19.7]} 26.
Kh2 {[%clk 0:00:29.9]} 26... d4 {[%clk 0:01:16.7]} 27. cxd4 {[%clk 0:00:29]}
27... Rxd4 {[%clk 0:01:17.6]} 28. Rxd4 {[%clk 0:00:27.4]} 28... Rxd4 {[%clk
0:01:18.5]} 29. Rd1 {[%clk 0:00:22.3]} 29... Rxd1 {[%clk 0:01:10.9]} 30. Qxd1
{[%clk 0:00:21.7]} 30... Qxa2+ {[%clk 0:01:11]} 31. Kh3 {[%clk 0:00:20.6]} 31...
Qe6+ {[%clk 0:00:53.8]} 32. g4 {[%clk 0:00:20.5]} 32... Qc6 {[%clk 0:00:48.8]}
33. Qd8+ {[%clk 0:00:19.5]} 33... Kf7 {[%clk 0:00:42.9]} 34. Kh2 {[%clk
0:00:19.3]} 34... Qf3 {[%clk 0:00:23.3]} 35. Qd7+ {[%clk 0:00:16.9]} 35... Kg8
{[%clk 0:00:22.8]} 36. Qe8+ {[%clk 0:00:15.8]} 36... Kg7 {[%clk 0:00:23.3]} 37.
Qe7+ {[%clk 0:00:14.7]} 37... Kg8 {[%clk 0:00:23.9]} 38. Qe6+ {[%clk 0:00:12.2]}
38... Kg7 {[%clk 0:00:24.3]} 39. Qf6+ {[%clk 0:00:11.7]} 39... Kg8 {[%clk
0:00:24]} 40. e6 {[%clk 0:00:07.5]} 40... Qf2+ {[%clk 0:00:21.4]} 41. Kh1 {[%clk
0:00:06.9]} 41... Qf3+ {[%clk 0:00:22.3]} 42. Kh2 {[%clk 0:00:07.1]} 42... Qf2+
{[%clk 0:00:21.4]} 43. Kh1 {[%clk 0:00:07.2]} 43... Qf1+ {[%clk 0:00:21.8]} 44.
Kh2 {[%clk 0:00:07.4]} 44... Qf2+ {[%clk 0:00:22.7]} 1/2-1/2

[Event "Early-Titled-Tuesday-Blitz-April-23-2024"]
[Site "Chess.com"]
[Date "2024.04.23"]
[Round "9"]
[White "AljoschaFeuerstack"]
[Black "kacperkarwowski"]
[Result "1-0"]
[WhiteElo "2609"]
[BlackElo "2512"]
[TimeControl "180+1"]
[EndTime "9:49:25 PDT"]
[Termination "AljoschaFeuerstack won by resignation"]

1. e4 {[%clk 0:03:00.9]} 1... c5 {[%clk 0:02:55.4]} 2. Nf3 {[%clk 0:03:00.2]}
2... e6 {[%clk 0:02:53.6]} 3. d3 {[%clk 0:02:57.7]} 3... Nc6 {[%clk 0:02:52.6]}
4. g3 {[%clk 0:02:57.5]} 4... g6 {[%clk 0:02:51.5]} 5. Bg2 {[%clk 0:02:57.6]}
5... Bg7 {[%clk 0:02:51.8]} 6. O-O {[%clk 0:02:55.5]} 6... Nge7 {[%clk
0:02:51.3]} 7. Re1 {[%clk 0:02:54]} 7... d6 {[%clk 0:02:48.9]} 8. c3 {[%clk
0:02:52.9]} 8... e5 {[%clk 0:02:40.7]} 9. a3 {[%clk 0:02:51.5]} 9... Be6 {[%clk
0:02:33]} 10. b4 {[%clk 0:02:50.4]} 10... b6 {[%clk 0:02:32.1]} 11. b5 {[%clk
0:02:37.5]} 11... Na5 {[%clk 0:02:23.3]} 12. Be3 {[%clk 0:02:22.4]} 12... d5
{[%clk 0:02:00.5]} 13. Ng5 {[%clk 0:02:16.1]} 13... d4 {[%clk 0:01:54.6]} 14.
Nxe6 {[%clk 0:02:15.5]} 14... fxe6 {[%clk 0:01:55.5]} 15. Bg5 {[%clk 0:02:01.3]}
15... h6 {[%clk 0:01:48.9]} 16. Bd2 {[%clk 0:02:00.1]} 16... Nb7 {[%clk
0:01:47.1]} 17. Bh3 {[%clk 0:01:51.4]} 17... Qd6 {[%clk 0:01:22]} 18. Qg4 {[%clk
0:01:46.1]} 18... Kf7 {[%clk 0:01:22]} 19. Bc1 {[%clk 0:01:32.2]} 19... Raf8
{[%clk 0:01:12.5]} 20. Nd2 {[%clk 0:01:28]} 20... h5 {[%clk 0:01:00.1]} 21. Qe2
{[%clk 0:01:19.6]} 21... Nc8 {[%clk 0:00:55.2]} 22. Nf3 {[%clk 0:01:01.1]} 22...
Bf6 {[%clk 0:00:44.7]} 23. Bg5 {[%clk 0:01:01.3]} 23... Kg7 {[%clk 0:00:37.3]}
24. Rac1 {[%clk 0:00:52.3]} 24... dxc3 {[%clk 0:00:28.2]} 25. Rxc3 {[%clk
0:00:50.3]} 25... Bxg5 {[%clk 0:00:25.6]} 26. Nxg5 {[%clk 0:00:51.2]} 26... Rf6
{[%clk 0:00:25.9]} 27. Rc4 {[%clk 0:00:35]} 27... Qe7 {[%clk 0:00:21.9]} 28. f4
{[%clk 0:00:32.7]} 28... exf4 {[%clk 0:00:17.4]} 29. e5 {[%clk 0:00:33.6]} 29...
Rf5 {[%clk 0:00:06.9]} 30. Bxf5 {[%clk 0:00:27.5]} 30... Qxg5 {[%clk 0:00:07]}
31. Bxe6 {[%clk 0:00:28.1]} 31... fxg3 {[%clk 0:00:07.4]} 32. Qg2 {[%clk
0:00:28.7]} 32... gxh2+ {[%clk 0:00:06.8]} 33. Kxh2 {[%clk 0:00:27.9]} 33...
Qxg2+ {[%clk 0:00:07]} 34. Kxg2 {[%clk 0:00:28.8]} 34... Re8 {[%clk 0:00:05.5]}
35. Bd7 {[%clk 0:00:28.1]} 35... Rd8 {[%clk 0:00:05.1]} 36. e6 {[%clk
0:00:24.2]} 36... Ne7 {[%clk 0:00:05.3]} 37. Rf4 {[%clk 0:00:23.2]} 37... Nf5
{[%clk 0:00:05.8]} 38. Rxf5 {[%clk 0:00:20.5]} 38... Nd6 {[%clk 0:00:04.6]} 39.
e7 {[%clk 0:00:21.4]} 39... Rxd7 {[%clk 0:00:04.6]} 40. Rd5 {[%clk 0:00:17.6]}
40... Kf7 {[%clk 0:00:04.5]} 41. Rxd6 {[%clk 0:00:17.4]} 41... Rxe7 {[%clk
0:00:03.1]} 42. Rxe7+ {[%clk 0:00:17.6]} 42... Kxe7 {[%clk 0:00:04]} 43. Rxg6
{[%clk 0:00:18.1]} 1-0

[Event "Early-Titled-Tuesday-Blitz-April-23-2024"]
[Site "Chess.com"]
[Date "2024.04.23"]
[Round "9"]
[White "MaxLeto"]
[Black "average_trans"]
[Result "1-0"]
[WhiteElo "2429"]
[BlackElo "2227"]
[TimeControl "180+1"]
[EndTime "9:49:26 PDT"]
[Termination "MaxLeto won by checkmate"]

1. g4 {[%clk 0:02:59.6]} 1... e6 {[%clk 0:02:57.5]} 2. Bg2 {[%clk 0:02:59.5]}
2... d5 {[%clk 0:02:57.7]} 3. d4 {[%clk 0:02:58.8]} 3... Be7 {[%clk 0:02:54.4]}
4. c4 {[%clk 0:02:56.7]} 4... c6 {[%clk 0:02:53.5]} 5. Nc3 {[%clk 0:02:57.2]}
5... h5 {[%clk 0:02:53.7]} 6. gxh5 {[%clk 0:02:53.2]} 6... Rxh5 {[%clk
0:02:53.1]} 7. e4 {[%clk 0:02:49]} 7... Rh8 {[%clk 0:02:53.2]} 8. Nge2 {[%clk
0:02:43.3]} 8... dxc4 {[%clk 0:02:51.5]} 9. Be3 {[%clk 0:02:37.8]} 9... Nf6
{[%clk 0:02:49.4]} 10. Qd2 {[%clk 0:02:26.2]} 10... Nbd7 {[%clk 0:02:46.4]} 11.
Ng3 {[%clk 0:02:16.2]} 11... Nb6 {[%clk 0:02:44.7]} 12. O-O-O {[%clk 0:02:14.4]}
12... Bd7 {[%clk 0:02:42.4]} 13. Kb1 {[%clk 0:02:12.1]} 13... a5 {[%clk
0:02:35.8]} 14. h4 {[%clk 0:02:07.8]} 14... a4 {[%clk 0:02:35]} 15. a3 {[%clk
0:02:08.4]} 15... Nc8 {[%clk 0:02:30.9]} 16. d5 {[%clk 0:02:01.6]} 16... cxd5
{[%clk 0:02:24.8]} 17. exd5 {[%clk 0:02:01.6]} 17... e5 {[%clk 0:02:24.3]} 18.
f4 {[%clk 0:01:44.8]} 18... e4 {[%clk 0:02:11.1]} 19. Ncxe4 {[%clk 0:01:39]}
19... Nxe4 {[%clk 0:02:10.3]} 20. Nxe4 {[%clk 0:01:38.6]} 20... Bf5 {[%clk
0:02:10.2]} 21. Ka1 {[%clk 0:01:37.6]} 21... Bxe4 {[%clk 0:02:10.4]} 22. Bxe4
{[%clk 0:01:38.2]} 22... Nd6 {[%clk 0:02:10.7]} 23. Bb1 {[%clk 0:01:28.5]} 23...
b5 {[%clk 0:02:09.7]} 24. Bd4 {[%clk 0:01:18.6]} 24... Nb7 {[%clk 0:02:00.7]}
25. Bxg7 {[%clk 0:00:58.7]} 25... Rg8 {[%clk 0:01:59.8]} 26. Be5 {[%clk
0:00:51.4]} 26... b4 {[%clk 0:01:54.2]} 27. d6 {[%clk 0:00:46.6]} 27... bxa3
{[%clk 0:01:27.1]} 28. dxe7 {[%clk 0:00:38.2]} 28... axb2+ {[%clk 0:01:26.7]}
29. Qxb2 {[%clk 0:00:39.1]} 29... Qxe7 {[%clk 0:01:25.7]} 30. Qb5+ {[%clk
0:00:37.3]} 30... Kf8 {[%clk 0:01:24.1]} 31. Rd7 {[%clk 0:00:34.3]} 31... Qa3+
{[%clk 0:01:22.3]} 32. Ba2 {[%clk 0:00:34.7]} 32... Rg2 {[%clk 0:01:19]} 33.
Qxc4 {[%clk 0:00:24.2]} 33... Qb3 {[%clk 0:00:30.5]} 34. Rxf7+ {[%clk
0:00:18.2]} 34... Kg8 {[%clk 0:00:24]} 35. Rg7+ {[%clk 0:00:16.9]} 35... Kh8
{[%clk 0:00:23.9]} 36. Rxg2+ {[%clk 0:00:15.9]} 36... Kh7 {[%clk 0:00:24.5]} 37.
Rg7+ {[%clk 0:00:14]} 37... Kh6 {[%clk 0:00:24.2]} 38. Qc6+ {[%clk 0:00:10.3]}
38... Nd6 {[%clk 0:00:21.3]} 39. Qxd6+ {[%clk 0:00:10.3]} 39... Qe6 {[%clk
0:00:20.6]} 40. Qxe6+ {[%clk 0:00:10.1]} 40... Kh5 {[%clk 0:00:21.5]} 41. Qf7+
{[%clk 0:00:05.5]} 41... Kh6 {[%clk 0:00:20.4]} 42. Qg6# {[%clk 0:00:04.6]} 1-0

[Event "Early-Titled-Tuesday-Blitz-April-23-2024"]
[Site "Chess.com"]
[Date "2024.04.23"]
[Round "9"]
[White "hakanazeri2"]
[Black "Crazy_girl99"]
[Result "1-0"]
[WhiteElo "2564"]
[BlackElo "2605"]
[TimeControl "180+1"]
[EndTime "9:49:28 PDT"]
[Termination "hakanazeri2 won by checkmate"]

1. Nf3 {[%clk 0:01:40.2]} 1... d5 {[%clk 0:02:39.5]} 2. g3 {[%clk 0:01:38]} 2...
Nf6 {[%clk 0:02:39.3]} 3. Bg2 {[%clk 0:01:38.2]} 3... g6 {[%clk 0:02:39.7]} 4.
b3 {[%clk 0:01:35.1]} 4... Bg7 {[%clk 0:02:40.1]} 5. Bb2 {[%clk 0:01:35.6]} 5...
O-O {[%clk 0:02:40.7]} 6. c4 {[%clk 0:01:32.3]} 6... e6 {[%clk 0:02:37.3]} 7.
O-O {[%clk 0:01:31.2]} 7... c5 {[%clk 0:02:37.3]} 8. cxd5 {[%clk 0:01:29.9]}
8... exd5 {[%clk 0:02:37.3]} 9. d4 {[%clk 0:01:27.1]} 9... Ne4 {[%clk
0:02:35.8]} 10. Nc3 {[%clk 0:01:14.5]} 10... Nc6 {[%clk 0:02:29.9]} 11. e3
{[%clk 0:01:00]} 11... Bg4 {[%clk 0:02:23.7]} 12. h3 {[%clk 0:00:51.2]} 12...
Bf5 {[%clk 0:02:00.2]} 13. Rc1 {[%clk 0:00:46]} 13... cxd4 {[%clk 0:01:56.6]}
14. Nxd4 {[%clk 0:00:42.1]} 14... Nxd4 {[%clk 0:01:54.2]} 15. exd4 {[%clk
0:00:40.1]} 15... Nxc3 {[%clk 0:01:50.6]} 16. Rxc3 {[%clk 0:00:39.8]} 16... Qd7
{[%clk 0:01:51]} 17. g4 {[%clk 0:00:39.3]} 17... Be6 {[%clk 0:01:50.9]} 18. Qd2
{[%clk 0:00:32.7]} 18... f5 {[%clk 0:01:46.4]} 19. Rfc1 {[%clk 0:00:25.8]} 19...
fxg4 {[%clk 0:01:39.2]} 20. Rc7 {[%clk 0:00:25.3]} 20... Qd6 {[%clk 0:01:39.4]}
21. hxg4 {[%clk 0:00:20.8]} 21... Bxg4 {[%clk 0:01:36.8]} 22. Rxb7 {[%clk
0:00:20.7]} 22... Rac8 {[%clk 0:01:26.2]} 23. Rc5 {[%clk 0:00:20.2]} 23... Be6
{[%clk 0:01:09]} 24. Qa5 {[%clk 0:00:10]} 24... Qf4 {[%clk 0:01:04.7]} 25. Qe1
{[%clk 0:00:05.5]} 25... Bf7 {[%clk 0:00:58.8]} 26. Rxf7 {[%clk 0:00:05.5]}
26... Qxf7 {[%clk 0:00:14.5]} 27. Bxd5 {[%clk 0:00:05.3]} 27... Rxc5 {[%clk
0:00:14.7]} 28. Bxf7+ {[%clk 0:00:04.1]} 28... Kxf7 {[%clk 0:00:14.8]} 29. dxc5
{[%clk 0:00:03.8]} 29... Bxb2 {[%clk 0:00:15.2]} 30. Qe2 {[%clk 0:00:04.4]}
30... Bf6 {[%clk 0:00:15.2]} 31. Qc4+ {[%clk 0:00:04]} 31... Kg7 {[%clk
0:00:15.6]} 32. c6 {[%clk 0:00:04.7]} 32... Rc8 {[%clk 0:00:15]} 33. Qe6 {[%clk
0:00:04.2]} 33... Rc7 {[%clk 0:00:14.9]} 34. Qd6 {[%clk 0:00:04.7]} 34... Re7
{[%clk 0:00:12.2]} 35. c7 {[%clk 0:00:05.1]} 35... Re1+ {[%clk 0:00:12.6]} 36.
Kg2 {[%clk 0:00:05.7]} 36... Rc1 {[%clk 0:00:12.6]} 37. Qd7+ {[%clk 0:00:06.3]}
37... Kh6 {[%clk 0:00:13.3]} 38. c8=Q {[%clk 0:00:07.2]} 38... Rxc8 {[%clk
0:00:12.4]} 39. Qxc8 {[%clk 0:00:08.1]} 39... Bd4 {[%clk 0:00:12.5]} 40. Qh3+
{[%clk 0:00:08.3]} 40... Kg7 {[%clk 0:00:12.5]} 41. Qd7+ {[%clk 0:00:08.8]}
41... Kh6 {[%clk 0:00:12.5]} 42. Qxd4 {[%clk 0:00:09.6]} 42... a5 {[%clk
0:00:12.4]} 43. a3 {[%clk 0:00:09.7]} 43... g5 {[%clk 0:00:13]} 44. b4 {[%clk
0:00:10.6]} 44... Kh5 {[%clk 0:00:13.9]} 45. bxa5 {[%clk 0:00:10.8]} 45... h6
{[%clk 0:00:14.8]} 46. a6 {[%clk 0:00:11.7]} 46... g4 {[%clk 0:00:15.6]} 47. a7
{[%clk 0:00:11.8]} 47... Kh4 {[%clk 0:00:16.5]} 48. a8=Q {[%clk 0:00:12.1]}
48... h5 {[%clk 0:00:17.4]} 49. Qad8# {[%clk 0:00:12.3]} 1-0

[Event "Early-Titled-Tuesday-Blitz-April-23-2024"]
[Site "Chess.com"]
[Date "2024.04.23"]
[Round "9"]
[White "only_strong_moves"]
[Black "GMAneta"]
[Result "1-0"]
[WhiteElo "2699"]
[BlackElo "2501"]
[TimeControl "180+1"]
[EndTime "9:49:28 PDT"]
[Termination "only_strong_moves won by checkmate"]

1. Nc3 {[%clk 0:02:49.1]} 1... d5 {[%clk 0:02:59.4]} 2. e4 {[%clk 0:02:49]} 2...
e6 {[%clk 0:02:57.9]} 3. d4 {[%clk 0:02:48.6]} 3... Bb4 {[%clk 0:02:55.9]} 4.
exd5 {[%clk 0:02:48.6]} 4... Qxd5 {[%clk 0:02:52.3]} 5. Nf3 {[%clk 0:02:46.7]}
5... Nf6 {[%clk 0:02:50.5]} 6. Bg5 {[%clk 0:02:41.9]} 6... Nbd7 {[%clk
0:02:46.2]} 7. Bd3 {[%clk 0:02:39.5]} 7... b6 {[%clk 0:02:45.5]} 8. O-O {[%clk
0:02:39]} 8... Bxc3 {[%clk 0:02:44.9]} 9. bxc3 {[%clk 0:02:39.9]} 9... Bb7
{[%clk 0:02:44.7]} 10. c4 {[%clk 0:02:39.7]} 10... Qa5 {[%clk 0:02:43.5]} 11. d5
{[%clk 0:02:38.8]} 11... exd5 {[%clk 0:02:43.1]} 12. Re1+ {[%clk 0:02:38.9]}
12... Kf8 {[%clk 0:02:43.2]} 13. Bd2 {[%clk 0:02:35.9]} 13... Qc5 {[%clk
0:02:39.9]} 14. Rb1 {[%clk 0:02:32.6]} 14... a5 {[%clk 0:02:39.5]} 15. Rb5
{[%clk 0:02:31.7]} 15... Qa3 {[%clk 0:02:37.9]} 16. Bc1 {[%clk 0:02:29.7]} 16...
Qxa2 {[%clk 0:02:37.2]} 17. c3 {[%clk 0:02:15.7]} 17... Re8 {[%clk 0:02:03.4]}
18. Rxe8+ {[%clk 0:02:09.1]} 18... Kxe8 {[%clk 0:02:03.4]} 19. Rb2 {[%clk
0:02:01.7]} 19... Qa1 {[%clk 0:01:57.9]} 20. cxd5 {[%clk 0:01:40.8]} 20... Bxd5
{[%clk 0:01:56.9]} 21. Nd4 {[%clk 0:01:35]} 21... Kd8 {[%clk 0:01:49.4]} 22. Qc2
{[%clk 0:01:24.3]} 22... Re8 {[%clk 0:01:45.5]} 23. Kf1 {[%clk 0:01:12.7]} 23...
Nc5 {[%clk 0:01:39.3]} 24. Bb5 {[%clk 0:01:12.3]} 24... Re7 {[%clk 0:00:56.6]}
25. c4 {[%clk 0:01:01.6]} 25... Be4 {[%clk 0:00:54]} 26. Qd1 {[%clk 0:00:47.8]}
26... Bd3+ {[%clk 0:00:43.6]} 27. Kg1 {[%clk 0:00:41.2]} 27... Re4 {[%clk
0:00:42.8]} 28. Nb3 {[%clk 0:00:27.6]} 28... Nxb3 {[%clk 0:00:36.5]} 29. Rxb3
{[%clk 0:00:28.5]} 29... Rd4 {[%clk 0:00:15.6]} 30. Rxd3 {[%clk 0:00:25.3]}
30... Rxd3 {[%clk 0:00:15.8]} 31. Qxd3+ {[%clk 0:00:26.2]} 31... Kc8 {[%clk
0:00:16.3]} 32. Qd1 {[%clk 0:00:17.9]} 32... Ne4 {[%clk 0:00:14.5]} 33. Bc6
{[%clk 0:00:13.4]} 33... Nd6 {[%clk 0:00:13.2]} 34. c5 {[%clk 0:00:13]} 34...
bxc5 {[%clk 0:00:13]} 35. h3 {[%clk 0:00:10.6]} 35... c4 {[%clk 0:00:11.8]} 36.
Kh2 {[%clk 0:00:09.9]} 36... c3 {[%clk 0:00:11.7]} 37. Qg4+ {[%clk 0:00:07.7]}
37... f5 {[%clk 0:00:11]} 38. Qxg7 {[%clk 0:00:06.1]} 38... Kb8 {[%clk
0:00:10.4]} 39. Qf8+ {[%clk 0:00:04.5]} 39... Ka7 {[%clk 0:00:10.7]} 40. Be3+
{[%clk 0:00:05]} 40... Ka6 {[%clk 0:00:11.1]} 41. Qa8# {[%clk 0:00:05.2]} 1-0

[Event "Early-Titled-Tuesday-Blitz-April-23-2024"]
[Site "Chess.com"]
[Date "2024.04.23"]
[Round "9"]
[White "ragnaroek66"]
[Black "ViktoriyaTarasova"]
[Result "1-0"]
[WhiteElo "2524"]
[BlackElo "2353"]
[TimeControl "180+1"]
[EndTime "9:49:33 PDT"]
[Termination "ragnaroek66 won on time"]

1. d4 {[%clk 0:03:00.9]} 1... Nf6 {[%clk 0:02:59]} 2. c4 {[%clk 0:03:00.8]} 2...
e6 {[%clk 0:02:59.2]} 3. Nf3 {[%clk 0:03:01]} 3... b6 {[%clk 0:02:58.7]} 4. g3
{[%clk 0:03:00.5]} 4... Ba6 {[%clk 0:02:58.3]} 5. Qc2 {[%clk 0:03:00.6]} 5... c5
{[%clk 0:02:55.1]} 6. d5 {[%clk 0:03:00.8]} 6... exd5 {[%clk 0:02:54.4]} 7. cxd5
{[%clk 0:03:01.7]} 7... Bb7 {[%clk 0:02:54.8]} 8. Bg2 {[%clk 0:03:02.1]} 8...
Nxd5 {[%clk 0:02:53.9]} 9. O-O {[%clk 0:03:01.6]} 9... Be7 {[%clk 0:02:53.6]}
10. Rd1 {[%clk 0:02:56.3]} 10... Nc6 {[%clk 0:02:51.4]} 11. Qf5 {[%clk
0:02:54.5]} 11... Nf6 {[%clk 0:02:42.3]} 12. e4 {[%clk 0:02:53.5]} 12... g6
{[%clk 0:02:34.4]} 13. Qf4 {[%clk 0:02:53.2]} 13... O-O {[%clk 0:02:33.5]} 14.
e5 {[%clk 0:02:41.4]} 14... Nh5 {[%clk 0:02:30.8]} 15. Qh6 {[%clk 0:02:41.4]}
15... Re8 {[%clk 0:02:22.6]} 16. g4 {[%clk 0:02:12.7]} 16... Bf8 {[%clk
0:02:15.4]} 17. Qe3 {[%clk 0:02:12.1]} 17... Ng7 {[%clk 0:02:11.8]} 18. Qc3
{[%clk 0:01:58.6]} 18... Ne6 {[%clk 0:02:10.3]} 19. Be3 {[%clk 0:01:55]} 19...
Qc7 {[%clk 0:02:01.1]} 20. Na3 {[%clk 0:01:54.1]} 20... a6 {[%clk 0:01:32.7]}
21. Nc4 {[%clk 0:01:53.1]} 21... Nb4 {[%clk 0:01:28.6]} 22. Ne1 {[%clk
0:01:42.4]} 22... Bxg2 {[%clk 0:01:25.1]} 23. Nxg2 {[%clk 0:01:40.6]} 23... Qc6
{[%clk 0:01:18.8]} 24. a3 {[%clk 0:01:23.2]} 24... Nd5 {[%clk 0:01:17.8]} 25.
Qd3 {[%clk 0:01:03.9]} 25... Ndc7 {[%clk 0:00:48.9]} 26. Qe2 {[%clk 0:00:54.8]}
26... Nb5 {[%clk 0:00:43]} 27. f4 {[%clk 0:00:46.5]} 27... Nbd4 {[%clk
0:00:42.4]} 28. Qf2 {[%clk 0:00:46.7]} 28... b5 {[%clk 0:00:32.9]} 29. Nd2
{[%clk 0:00:45.4]} 29... d6 {[%clk 0:00:29.3]} 30. f5 {[%clk 0:00:41.1]} 30...
Nc7 {[%clk 0:00:23.2]} 31. Bxd4 {[%clk 0:00:36]} 31... cxd4 {[%clk 0:00:17.5]}
32. Rac1 {[%clk 0:00:32.8]} 32... Qb6 {[%clk 0:00:13.9]} 33. Ne4 {[%clk
0:00:32.7]} 33... dxe5 {[%clk 0:00:12.6]} 34. Rxc7 {[%clk 0:00:24]} 34... Qxc7
{[%clk 0:00:12.5]} 35. Nf6+ {[%clk 0:00:24.6]} 35... Kg7 {[%clk 0:00:07.2]} 36.
Nd5 {[%clk 0:00:20.6]} 36... Qd6 {[%clk 0:00:06.8]} 37. f6+ {[%clk 0:00:20.4]}
37... Kh8 {[%clk 0:00:06.9]} 38. Nb4 {[%clk 0:00:19.1]} 38... Rad8 {[%clk
0:00:06.2]} 39. Nc2 {[%clk 0:00:17.8]} 39... d3 {[%clk 0:00:05.1]} 40. Nce3
{[%clk 0:00:18.2]} 40... e4 {[%clk 0:00:05]} 41. g5 {[%clk 0:00:18.8]} 41... Qe5
{[%clk 0:00:03.7]} 42. Nf4 {[%clk 0:00:18.7]} 42... Bc5 {[%clk 0:00:03]} 43.
Nfg2 {[%clk 0:00:18.1]} 1-0